Cogmind - Beta 11.1 @@@ ROGUE MODE // 2022.07.09 @ 19:34:40 Player: fard Result: Destroyed by DAS Turret with DAS Cannon Performance ------------- Evolutions (1) 500 Regions Visited (4) 800 Robots Destroyed (29) 145 Value Destroyed (428) 428 Prototype IDs (7) 140 Alien Tech Used (0) 0 Bonus (300) 300 TOTAL SCORE: 2313 Bonus ------- Aligned with FarCom 300 Cogmind --------- Core Integrity 0/400 Matter 224/300 Energy 98/100 System Corruption 5% Temperature Cool (0) Movement Core (50) Location -9/Exiles Parts ------- > --- POWER (1) -------- (None) > --- PROPULSION (3) --- (None) > --- UTILITY (3) ------ Targeting Computer > --- WEAPON (2) ------- (None) > --- INVENTORY (5) ---- Light Armor Plating Particle Cannon Assault Cannon Assault Cannon Datajack Peak State ------------ > --- POWER ------------ Improved Ion Engine > --- PROPULSION ------- Improved Hover Unit Improved Hover Unit Improved Hover Unit > --- UTILITY ---------- Experimental Sensor Array Targeting Computer Improved Light Armor Plating > --- WEAPON ----------- AWS/Thermal > --- INVENTORY -------- Light Armor Plating Latent Energy Streamer Particle Cannon Datajack [Rating: 38] Favorites ----------- Power Improved Ion Engine Engine Improved Ion Engine Power Core Light Nuclear Core Propulsion Improved Hover Unit Treads Light Treads Leg Aluminum Leg Hover Unit Improved Hover Unit Flight Unit Improved Flight Unit Utility Targeting Computer Device Sensor Array Storage Small Storage Unit Processor Targeting Computer Protection Improved Light Armor Plating Weapon Assault Cannon Energy Gun Medium Laser Energy Cannon Beam Cannon Ballistic Gun Assault Rifle Ballistic Cannon Assault Cannon Launcher Grenade Launcher Impact Weapon Heavy Hammer Special Melee Weapon Datajack Build | -11 -10 -9 -9 -9 ------- Run | Scr Mat Mat Min Exi Slots Evolved 2 | . . 2 . . Power . | . . . . . Propulsion 1 | . . 1 . . Utility 1 | . . 1 . . Weapon . | . . . . . Parts Attached 43 | 8 9 22 2 2 Power 4 | 1 1 2 . . Engine 3 | 1 . 2 . . Core 1 | . 1 . . . Reactor . | . . . . . Propulsion 15 | 3 3 9 . . Treads 1 | 1 . . . . Leg 5 | 2 3 . . . Wheel . | . . . . . Hover 6 | . . 6 . . Flight 3 | . . 3 . . Utility 10 | 2 4 2 2 . Device 4 | 1 2 . 1 . Storage 1 | 1 . . . . Processor 1 | . 1 . . . Hackware . | . . . . . Protection 4 | . 1 2 1 . Artifact . | . . . . . Weapon 14 | 2 1 9 . 2 Energy Gun 2 | 1 . . . 1 Energy Cannon 2 | . 1 . . 1 Ballistic Gun 1 | 1 . . . . Ballistic Cannon 5 | . . 5 . . Launcher 1 | . . 1 . . Special Weapon . | . . . . . Impact Weapon 2 | . . 2 . . Slashing Weapon . | . . . . . Piercing Weapon . | . . . . . Special Melee Weapon 1 | . . 1 . . Unidentified Prototypes 5 | . . 2 1 2 Parts Lost 8 | . 1 1 . 6 Power 1 | . . . . 1 Propulsion 3 | . . . . 3 Utility 2 | . 1 . . 1 Weapon 2 | . . 1 . 1 Highest Loss Streak 6 | . 1 1 . 6 To Critical Strikes . | . . . . . Average Slot Usage (%) 97 | . 97 98 100 93 Engine 7 | . 4 7 11 10 Core 4 | . 9 3 . . Leg 13 | . 27 7 . . Hover 16 | . . 23 33 31 Device 10 | . 10 11 11 10 Processor 9 | . 6 11 11 11 Protection 9 | . 8 11 11 10 Energy Gun 2 | . 7 . . . Energy Cannon 3 | . 6 3 . 1 Ballistic Gun 5 | . 14 . . . Ballistic Cannon 9 | . . 10 22 17 Impact Weapon 1 | . . 4 . . Naked Turns . | . . . . . Heaviest Build 21 | 15 15 21 21 21 Greatest Support 21 | 20 20 21 21 21 Greatest Overweight (x) 6 | 2 3 6 . 2 Average Overweight (x) . | . . . . . Largest Inventory Capacity 8 | 8 8 5 5 5 Average Capacity 5 | 7 5 5 5 5 Most Carried 6 | 6 6 5 5 5 Average Carried 4 | 4 4 4 4 4 Final Capacity 8 | 8 5 5 5 5 Final Carried 6 | 6 5 5 5 5 Class Distribution -------------------- 93% | Mutant 6% | Scavenger-Mutant Dominant Class ---------------- Mutant | -10/Materials Mutant | -9/Materials Mutant | -9/Mines Mutant | -9/Exiles Resources | -11 -10 -9 -9 -9 ----------- Run | Scr Mat Mat Min Exi Matter Collected 785 | 280 151 354 . . Remotely . | . . . . . Salvage Created 716 | 165 297 254 . . Parts 47 | 7 19 21 . . Haulers Intercepted 4 | . 1 3 . . Recyclers Shooed 2 | 1 . 1 . . Parts Field Recycled . | . . . . . Retrieved Matter . | . . . . . Parts Self-Destructed . | . . . . . Prevented . | . . . . . Kills | -11 -10 -9 -9 -9 ------- Run | Scr Mat Mat Min Exi Combat Hostiles Destroyed 17 | . 7 10 . . Guns 5 | . 5 . . . Cannons 8 | . 2 6 . . AOE 4 | . . 4 . . Classes Destroyed 8 | 3 4 1 . . Worker 2 | 1 1 . . . Tunneler 3 | 3 . . . . Hauler 4 | . 1 3 . . Recycler 1 | 1 . . . . Watcher 2 | . 1 1 . . Swarmer 11 | . 3 8 . . Grunt 4 | . 4 . . . Sentry 2 | . . 2 . . Best Kill Streak 5 | 3 5 4 . . Combat Bots Only 5 | . 5 4 . . Max Kills in Single Turn 3 | 1 1 3 . . Gunslinging . | . . . . . Exploded 3 | . . 3 . . Melee . | . . . . . Uniques/NPCs Destroyed . | . . . . . Combat | -11 -10 -9 -9 -9 -------- Run | Scr Mat Mat Min Exi Damage Taken 1531 | . 381 396 . 754 Core 515 | . 95 68 . 352 Absorbed by Shields . | . . . . . Redirected to Shielding 7 | . 7 . . . Core Remaining (%) 81 | 100 62 . . . Volleys Fired 70 | 19 23 22 . 6 Largest 2 | 1 2 2 . 2 Hottest 90 | 50 80 90 . 88 Shots Fired 104 | 19 45 30 . 10 Gun 56 | 19 37 . . . Cannon 46 | . 8 28 . 10 Launcher 2 | . . 2 . . Special . | . . . . . Kinetic 56 | . 22 26 . 8 Thermal 44 | 19 23 2 . . Explosive 2 | . . 2 . . Electromagnetic 2 | . . . . 2 Robot Hit Streak 8 | 8 7 3 . . Robot Miss Streak 6 | 2 3 6 . . Penetration Max . | . . . . . Secondary Targets 1 | . 1 . . . Max Gunslinging Chain 1 | . 1 . . . Shots Hit Robots 75 | 14 27 34 . . Core Hits 31 | 6 15 10 . . Critical Kills . | . . . . . Critical Parts Destroyed 1 | . . 1 . . Critical Strikes 3 | 1 . 2 . . Burn 1 | 1 . . . . Smash 2 | . . 2 . . Melee Attacks 21 | . . 21 . . Impact 14 | . . 14 . . Slashing . | . . . . . Piercing . | . . . . . Sneak Attacks 10 | . . 10 . . Combat Hostiles . | . . . . . Follow-up Attacks . | . . . . . Damage Inflicted 1673 | 188 378 1107 . . Guns 451 | 188 263 . . . Cannons 397 | . 107 290 . . Explosions 260 | . . 260 . . Melee 557 | . . 557 . . Ramming 8 | . 8 . . . Kinetic 421 | . 149 272 . . Thermal 427 | 188 221 18 . . Explosive 260 | . . 260 . . Electromagnetic . | . . . . . Impact 557 | . . 557 . . Slashing . | . . . . . Piercing . | . . . . . Highest Corruption 5 | . . . . 5 Average Corruption 3 | . . . . 3 Corruption Purged . | . . . . . Corruption Blocked . | . . . . . Effects 1 | . . . . 1 Parts Rejected 1 | . . . . 1 Overload Shots . | . . . . . Overflow Damage 127 | . . 127 . . Projectiles 18 | . . 18 . . Explosions 4 | . . 4 . . Melee 105 | . . 105 . . Knockbacks 1 | . . 1 . . Impact . | . . . . . Kinetic 1 | . . 1 . . Secondary . | . . . . . Self-Inflicted Damage 52 | . . 52 . . Shots 2 | . . 2 . . Rammed . | . . . . . Targets Rammed 1 | . 1 . . . Kicked 1 | . 1 . . . Crushed . | . . . . . Highest Temperature 132 | 50 132 117 . 122 Average Temperature 38 | 17 53 30 . 45 Received Heat Transfer 228 | . 78 90 . 60 Siege Activations . | . . . . . Robots Corrupted . | . . . . . Combat Hostiles . | . . . . . Parts Fried 4 | . . 4 . . Impact Corruptions 5 | . . 5 . . Robots Melted . | . . . . . Combat Hostiles . | . . . . . Parts Melted 4 | 2 2 . . . Heat Transferred 1221 | 629 555 37 . . Parts Sabotaged . | . . . . . Parts Stolen . | . . . . . Parts Stripped . | . . . . . Power Chain Reactions . | . . . . . Missiles Intercepted . | . . . . . Latent Energy Used 331 | . . . . 331 LE Corruption 5 | . . . . 5 Alert | -11 -10 -9 -9 -9 ------- Run | Scr Mat Mat Min Exi Peak Influence 362 | 25 204 362 94 . Initial 94 | . 16 15 94 . Average 109 | 10 72 198 94 . Maximum Alert Level 1 | . 1 1 . . Low Security (%) 80 | 100 97 44 100 . Level 1 19 | . 2 55 . . Level 2 . | . . . . . Level 3 . | . . . . . Level 4 . | . . . . . Level 5 . | . . . . . High Security . | . . . . . Max Security . | . . . . . Squads Dispatched 2 | . 2 . . . Investigation 1 | . 1 . . . Extermination . | . . . . . Reinforcement 1 | . 1 . . . Assault . | . . . . . Garrison . | . . . . . Intercept . | . . . . . Searches Triggered . | . . . . . Construction Impeded . | . . . . . Haulers Reinforced . | . . . . . Active Scanning Responses . | . . . . . Cargo Convoy Interrupts . | . . . . . Stealth | -11 -10 -9 -9 -9 --------- Run | Scr Mat Mat Min Exi Distress Signals 1 | . . 1 . . Communications Jammed . | . . . . . Distress Signals . | . . . . . Times Spotted 31 | . 9 14 . 8 Peak Tracking Total 10 | . 6 5 . 10 Tactical Retreats 2 | . . 1 . 1 Traps | -11 -10 -9 -9 -9 ------- Run | Scr Mat Mat Min Exi Traps Triggered 1 | . 1 . . . Indirectly . | . . . . . Trap Hack Attempts . | . . . . . Triggered . | . . . . . Disarmed . | . . . . . Reprogrammed 6 | . . 6 . . Reused . | . . . . . Traps Extracted . | . . . . . Installed . | . . . . . Triggered . | . . . . . Machines | -11 -10 -9 -9 -9 ---------- Run | Scr Mat Mat Min Exi Machines Disabled 6 | . . 1 . 5 Max in Single Turn 3 | . . 1 . 3 Machines Sabotaged . | . . . . . Garrisons Compromised . | . . . . . Overloaded Fab Kills . | . . . . . Hacking | -11 -10 -9 -9 -9 --------- Run | Scr Mat Mat Min Exi Machines Accessed 11 | . 4 3 . 4 Terminals 7 | . 4 3 . . Fabricators . | . . . . . Repair Stations . | . . . . . Recycling Units . | . . . . . Scanalyzers . | . . . . . Garrison Access . | . . . . . Total Hacks 69 | . 9 11 . 49 Successful 58 | . 5 4 . 49 Failed 11 | . 4 7 . . Catastrophic . | . . . . . Database Lockouts . | . . . . . Manual 2 | . . . . 2 Terminals 20 | . 9 11 . . Fabricators . | . . . . . Repair Stations . | . . . . . Recycling Units . | . . . . . Scanalyzers . | . . . . . Garrison Access . | . . . . . Terminal Hacks 58 | . 5 4 . 49 Record 50 | . . 1 . 49 Robot Analysis 1 | . 1 . . . Prototype ID Bank 1 | . 1 . . . Alert Level 3 | . 2 1 . . Locate Traps 1 | . . 1 . . Reprogram Traps 1 | . . 1 . . Dispatch Records 1 | . 1 . . . Fabricator Hacks . | . . . . . Repair Station Hacks . | . . . . . Recycling Unit Hacks . | . . . . . Scanalyzer . | . . . . . Garrison Access Hacks . | . . . . . Unauthorized Hacks . | . . . . . Terminals . | . . . . . Fabricators . | . . . . . Repair Stations . | . . . . . Recycling Units . | . . . . . Scanalyzers . | . . . . . Garrison Access . | . . . . . Data Cores Recovered . | . . . . . Used . | . . . . . Hacking Detections 6 | . 3 3 . . Full Trace Events . | . . . . . Feedback Events . | . . . . . Feedback Blocked . | . . . . . Robot Schematics Acquired . | . . . . . Robots Built . | . . . . . Authchips . | . . . . . Time . | . . . . . Total Robot Build Rating . | . . . . . Part Schematics Acquired . | . . . . . Parts Built . | . . . . . Authchips . | . . . . . Time . | . . . . . Total Part Build Rating . | . . . . . Parts Repaired . | . . . . . Time . | . . . . . Parts Recycled . | . . . . . Recycled Matter . | . . . . . Retrieved Matter . | . . . . . Retrieved Components . | . . . . . Parts Scanalyzed . | . . . . . Part Schematics Acquired . | . . . . . Parts Damaged . | . . . . . Bothacking | -11 -10 -9 -9 -9 ------------ Run | Scr Mat Mat Min Exi Used RIF Installer . | . . . . . Robots Hacked 3 | . . 3 . . Non-combat 3 | . . 3 . . Combat . | . . . . . Robot Hacks Applied 5 | . . 5 . . parse_system 3 | . . 3 . . no_distress 1 | . . 1 . . find_recycling 1 | . . 1 . . Relay Couplers Released . | . . . . . Fabnet Peak Effective % . | . . . . . Robots Rewired . | . . . . . Allies Hacked . | . . . . . Hacks Repelled . | . . . . . Allies | -11 -10 -9 -9 -9 -------- Run | Scr Mat Mat Min Exi Total Allies 1 | . . . 1 . Largest Group 1 | . . . 1 1 Highest-Rated Group 31 | . . . 31 31 Highest-Rated Ally 31 | . . . 31 31 Total Orders . | . . . . . Ally Attacks . | . . . . . Total Damage . | . . . . . Kills . | . . . . . Allies Corrupted . | . . . . . Allies Melted . | . . . . . Intel | -11 -10 -9 -9 -9 ------- Run | Scr Mat Mat Min Exi Robot Analysis Total 1 | . 1 . . . Derelict Logs Recovered . | . . . . . Drone Launches . | . . . . . Drone Recoveries . | . . . . . Exploration | -11 -10 -9 -9 -9 ------------- Run | Scr Mat Mat Min Exi Turns Passed 1683 | 191 583 489 167 253 Spaces Moved 1605 | 113 387 449 236 420 Core 36 | 25 2 1 . 8 Treads . | . . . . . Legs 581 | 88 385 108 . . Wheels . | . . . . . Hover 981 | . . 333 236 412 Flight 7 | . . 7 . . Fastest Speed 50 | 50 120 52 52 50 Average Speed 78 | 116 120 70 52 54 Slowest Speed 350 | 150 200 350 52 180 Overloaded Moves . | . . . . . Propulsion Burnouts . | . . . . . Robots Hopped . | . . . . . Cave-ins Triggered . | . . . . . Exploration Rate (%) 40 | 3 49 27 48 74 Regions Visited 4 Branch Regions 2 Pre-discovered Areas 1 | . . . . 1 Known Exits Taken . | . . . . . Unknown Exits Taken 4 | 1 1 1 1 . Scrap Searched 1 | . . . 1 . Spaces Dug . | . . . . . Terrain Destroyed 94 | . . 28 . 66 Melee . | . . . . . Projectile 7 | . . 7 . . AOE 87 | . . 21 . 66 Terrain Rammed . | . . . . . Walls Destroyed . | . . . . . Machines Disabled . | . . . . . Actions | -11 -10 -9 -9 -9 --------- Run | Scr Mat Mat Min Exi Total 1893 | 154 464 557 280 438 Wait 79 | . 22 19 37 1 Move 1601 | 112 386 448 235 420 Hop . | . . . . . Pick Up 40 | 14 10 9 3 4 Fast Attach 11 | . 2 9 . . Attach 18 | 8 5 2 1 2 Detach . | . . . . . Swap 15 | . 2 12 1 . Drop 37 | 1 13 15 3 5 Fire 70 | 19 23 22 . 6 Melee 21 | . . 21 . . Ram . | . . . . . Kick 1 | . 1 . . . Crush . | . . . . . Escape Stasis . | . . . . . Rewire . | . . . . . Trap . | . . . . . Miscellaneous . | . . . . . Route ------- -11/Scrapyard -10/Materials -9/Materials -9/Mines (discovered 3 exits: [*Mat x2] / *Exi) -9/Exiles (discovered 2 exits: [*Min x2]) History --------- Turn | Location | Event 40 | -11/Scrapyard | Discovered new exit (range 15) 192 | -11/Scrapyard | Entered Materials 314 | -10/Materials | Build established: Mutant 608 | -10/Materials | Discovered new exit (range 13) 775 | -10/Materials | Entered another Materials area 775 | -9/Materials | Evolved 2 slots: Propulsion x1, Utility x1 1216 | -9/Materials | Discovered new exit (range 15) 1264 | -9/Materials | Entered Mines 1267 | -9/Mines | Received a Mining Laser from a helpful Derelict 1289 | -9/Mines | Found a damaged Exp. Sensor Array with a note attached 1290 | -9/Mines | Found Prototype Device 1291 | -9/Mines | Identified Exp. Sensor Array 1317 | -9/Mines | Discovered new exit (range 10) 1357 | -9/Mines | Received a Rocket Launcher from a helpful Derelict 1371 | -9/Mines | Discovered new exit (range 13) 1415 | -9/Mines | Deemed a non-threat by the Exiles lab entrance 1416 | -9/Mines | Discovered new exit (range 5) 1431 | -9/Mines | Entered Exiles 1431 | -9/Exiles | Accompanied by 1 ally 1440 | -9/Exiles | Discovered new exit (range 14) 1449 | -9/Exiles | Met 8R-AWN 1456 | -9/Exiles | Met EX-HEX 1486 | -9/Exiles | Met EX-DEC 1526 | -9/Exiles | Learned location of Zion (-6) 1543 | -9/Exiles | Discovered new exit (range 14) 1583 | -9/Exiles | Met EX-BIN 1592 | -9/Exiles | Aligned with FarCom system 1592 | -9/Exiles | Given EX-Vault access code 1626 | -9/Exiles | Opened EX-Vault 1629 | -9/Exiles | Found Prototype Energy Gun 1631 | -9/Exiles | Identified AWS/Thermal 1633 | -9/Exiles | Found Prototype Energy Cannon 1635 | -9/Exiles | Identified Latent Energy Streamer 1637 | -9/Exiles | Attacked by the Exiles 1671 | -9/Exiles | Core integrity fell below 50% 1684 | -9/Exiles | Core integrity fell below 20% 1684 | -9/Exiles | Destroyed by DAS Turret with DAS Cannon Last Messages --------------- time we started looking into something better than flamers as a delivery system. ** DEC: I'm with you on that! The Firepult is just the beginning. >>Record! "DEC-099/Infernogeddon Engine" [REDACTED] ** HEX: No. 01661_ Imp. Light Armor Plating destroyed. 01662_ Imp. Hover Unit destroyed. 01663_ System corrupted: FCS attempts to trigger Latent Energy Streamer. 01665_ Imp. Hover Unit destroyed. 01666_ Imp. Ion Engine destroyed. 01677_ HV Slug penetrates Machine. 01677_ HV Slug penetrates Wall. 01677_ Latent Energy Streamer destroyed. 01678_ System corrupted: Exp. Sensor Array rejected. 01679_ HV Slug penetrates Machine. 01679_ Machine disabled. 01679_ HV Slug penetrates Machine. 01681_ Imp. Hover Unit destroyed. 01681_ HV Slug penetrates Machine. 01683_ Penetrated by HV Slug. Map ----- +----------------------------------------------------+ | ????????????????????????#" ## #??????????? | | ????????????????????????#""""""## #?#########? | | ????????????????????????##"###### #?#"""""""#? | | ???????????????????????? "?????# #?#"""""""#? | | ???????????????????????"""??????# #?#"""""""#? | | ???????????????????????"""?????## ###"" """"#? | | ######?????????????????????????#" """"#? | | !!! "#?????????????????????????#" """#? | | "#?????????????????????????#" """#? | | "#?????????????????????????#" """#? | | ""#???????????#######???????#" ""#? | | ""#??????????? """#???????#" "## | | ""#??????????#"" """#???????## """ | | #????????????#"" #????????# "## | | #????????????#"" #????????#" """ | | ##???????????#"" "#????????#" # | | "#???????????# ""#????????#" ""#? | | ###??????????"" ""#???????##" ! ##"""""####? | | ##??????????# #????????##" #?######???? | | "" ######???### ###?######"" a #??????????? | | #" """#####X# #"###" a g##?????????? | | #" """""" "a"" ##???###### | | #"# "" """ " #####""""" | | #### " " a " """ | | ???### a "" | | ?????### @ % " | | ???????## % | | ????????## | | ?????????##" | | ??????????#""" """""" | | ?????????##" ######""" | | ?????????#"" ""##????#####""" | | ????????##""" """##?????????##""" | | ????????#""" """##???????????#"""" | | ????????#""" ""#???????????##"" | | ????????#"" ########??####"""" | | ????????#""" ## ####""" | | ????????#"" """" | | ????????##"" | | ?????????#"""" | | ?????????## " | | ??????????#" " "" "" | | ??????????#"""" ""## ##""" " " ""# | | ??????????#"" ""#### ######""" """# | | ??????????#" """"##??# #????###""""## | | ??????????#""" """#???# #??????######? | | ??????????## ""##???! ????????????? | | ???????????#"" """##???#" ???????????? | | ???????????##""" ##????#" ???????????? | | ????????????##"""" ##??????!!""!"??????????? | +----------------------------------------------------+ Best States ------------- Heat Dissipation 35 Energy Generation 14 Energy Capacity 265 Matter Stores 300 Matter Capacity 300 Sight Range 16 Robot Scan Range 20 Terrain Scan Density 10 Armor Coverage 150 Utility Shielding 33 Evasion (%) 55 Targeting Accuracy 5 Item Schematics ----------------- None Robot Schematics ------------------ None Fabricated ------------ Nothing Alien Tech Used ----------------- None Achievements -------------- Let's See Who's Tougher Challenges ------------ None Game ------ Seed MiningLightpackMegatreads Manual? 0 Play Time 00:55:10 Cumulative 6.4 hours Start 2022.07.09 @ 18:23:24 End 2022.07.09 @ 19:34:40 Sessions 3 Manual Loads 0 Difficulty Rogue Special Mode None Game No. 6 Rogue 6 Adventurer 0 Explorer 0 Win Type - Total 0 Types 0/0/0/0/0/0/0/0/0 Lore% 15 Gallery% 11 Achievement% 12 Wizard Run 0 Options --------- ASCII 0 Keyboard 0 Movement Mouse Keybinds 0 Fullscreen 1 Font 18/SmallcapsGlow Map View 76x50 Tactical HUD 1 Map Filters NONE Filters NONE Steam 1 RUN: bb425343-c243-4107-9d5c-56a6d845d12f